fUST/lending_fUST_20250630
["ID","MTS","AMOUNT","RATE_DAILY","PERIOD"]
[368669842,1751287845225,-151.0,0.00019058,2]
[368669843,1751287845234,-151.0,0.00019058,2]
[368669844,1751287845243,-151.0,0.00019058,2]
[368669845,1751287845253,-460.0,0.00019058,2]
[368669846,1751287845262,-151.0,0.00019058,2]
[368669847,1751287845271,-460.0,0.00019058,2]
[368669848,1751287845281,-472.03175633,0.00019058,2]
[368669849,1751287845291,-460.0,0.00019058,2]
[368669850,1751287845301,-460.0,0.00019058,2]
[368669851,1751287845311,-151.0,0.00019059,2]
[368669852,1751287845321,-151.0,0.00019059,2]
[368669853,1751287845331,-151.0,0.00019059,2]
[368669854,1751287845341,-460.0,0.00019059,2]
[368669855,1751287845350,-460.0,0.00019059,2]
[368669856,1751287845360,-460.0,0.00019059,2]
[368669857,1751287845370,-460.0,0.00019059,2]
[368669858,1751287845379,-500.0,0.00019059,2]
[368669859,1751287845389,-460.0,0.00019059,2]
[368669860,1751287845398,-460.0,0.0001906,2]
[368669861,1751287845408,-460.0,0.0001906,2]
[368669862,1751287845417,-460.0,0.0001906,2]
[368669863,1751287845426,-160.48617196,0.0001906,2]
[368669864,1751287845436,-460.0,0.00019071,2]
[368669865,1751287845445,-222.94932843,0.00019071,2]
[368669866,1751287845455,-354.89810426,0.00019071,2]
[368669867,1751287845464,-505.38863357,0.00019071,2]
[368669868,1751287845474,-540.0,0.00019071,2]
[368669869,1751287845483,-151.0,0.00019071,2]
[368669870,1751287845493,-151.0,0.00019071,2]
[368669871,1751287845503,-151.0,0.00019071,2]
[368669872,1751287845512,-460.0,0.00019071,2]
[368669873,1751287845632,-460.0,0.00019071,2]
[368669874,1751287845644,-460.0,0.00019071,2]
[368669875,1751287845654,-504.0,0.00019071,2]
[368669876,1751287845664,-487.11,0.00019071,2]
[368669877,1751287845674,-831.78,0.00019071,2]
[368669878,1751287845688,-460.0,0.00019071,2]
[368669879,1751287845698,-460.0,0.00019071,2]
[368669880,1751287845707,-460.0,0.00019071,2]
[368669881,1751287845718,-460.0,0.00019071,2]
[368669882,1751287845727,-1307.4,0.00019071,2]
[368669883,1751287845737,-460.0,0.00019071,2]
[368669884,1751287845746,-460.0,0.00019071,2]
[368669885,1751287845756,-5175.82147722,0.00019072,2]
[368669886,1751287845765,-181.09163339,0.00019073,2]
[368669887,1751287845775,-512.10269403,0.00019073,2]
[368669888,1751287845784,-500.0,0.00019073,2]
[368669889,1751287845796,-500.0,0.00019073,2]
[368669890,1751287845805,-501.53711033,0.00019073,2]
[368669891,1751287845815,-507.76383046,0.00019073,2]
[368669892,1751287845825,-500.0,0.00019073,2]
[368669893,1751287845834,-500.0,0.00019073,2]
[368669894,1751287845844,-443.30882593,0.00019073,2]
[368669895,1751287845853,-500.0,0.00019073,2]
[368669896,1751287845863,-581.45583009,0.0001909,2]
[368669897,1751287845873,-500.0,0.00019091,2]
[368669898,1751287845883,-500.0,0.00019091,2]
[368669899,1751287845892,-500.0,0.00019091,2]
[368669900,1751287845902,-500.0,0.00019092,2]
[368669901,1751287845912,-214.99848635,0.00019102,2]
[368669902,1751287845921,-847.41730813,0.00019102,2]
[368669903,1751287845931,-12569.13231816,0.00019102,2]
[368669904,1751287845940,-837.16779106,0.00019102,2]
[368669905,1751287845950,-160.0,0.00019102,2]
[368669906,1751287845959,-213.84631524,0.00019102,2]
[368669907,1751287845969,-230.31346914,0.00019102,2]
[368669908,1751287845978,-160.0,0.00019102,2]
[368669909,1751287845988,-160.0,0.00019102,2]
[368669910,1751287845998,-160.0,0.00019102,2]
[368669911,1751287846007,-160.0,0.00019102,2]
[368669912,1751287846016,-366.3004382,0.00019123,2]
[368669913,1751287846026,-500.0,0.00019138,2]
[368669914,1751287846037,-509.06005233,0.00019164,2]
[368669915,1751287846046,-288.66192114,0.00019165,2]
[368669916,1751287846055,-404.957882,0.00019178,2]
[368669917,1751287846065,-581.45583009,0.00019232,2]
[368669918,1751287846074,-5175.82147722,0.00019245,2]
[368669919,1751287846083,-460.0,0.00019309,2]
[368669920,1751287846093,-460.0,0.00019309,2]
[368669921,1751287846102,-808.13,0.00019309,2]
[368669922,1751287846111,-460.0,0.00019309,2]
[368669923,1751287846121,-1432.11,0.0001931,2]
[368669924,1751287846131,-460.0,0.0001931,2]
[368669925,1751287846140,-203.563282,0.0001931,2]
[368669926,1751287846150,-1392.04,0.0001931,2]
[368669927,1751287846159,-203.563282,0.0001931,2]
[368669928,1751287846169,-460.0,0.0001931,2]
[368669929,1751287846179,-460.0,0.0001931,2]
[368669930,1751287846188,-460.0,0.0001931,2]
[368669931,1751287846198,-460.0,0.0001931,2]
[368669932,1751287846207,-1416.44,0.0001931,2]
[368669933,1751287846216,-1460.61,0.0001931,2]
[368669934,1751287846226,-460.0,0.0001931,2]
[368669935,1751287846235,-460.0,0.0001931,2]
[368669936,1751287846245,-460.0,0.0001931,2]
[368669937,1751287846255,-784.07,0.0001931,2]
[368669938,1751287846265,-342.51669618,0.00019311,2]
[368669939,1751287846274,-460.0,0.00019311,2]
[368669940,1751287846284,-460.0,0.00019311,2]
[368669941,1751287846295,-460.0,0.00019311,2]
[368669942,1751287846304,-151.0,0.00019311,2]
[368669943,1751287846314,-460.0,0.00019311,2]
[368669944,1751287846324,-460.0,0.00019311,2]
[368669945,1751287846333,-460.0,0.00019311,2]
[368669946,1751287846343,-460.0,0.00019311,2]
[368669947,1751287846352,-460.0,0.00019311,2]
[368669948,1751287846362,-460.0,0.00019311,2]
[368669949,1751287846371,-907.07,0.00019311,2]
[368669950,1751287846380,-460.0,0.00019311,2]
[368669951,1751287846391,-166.17,0.00019311,2]
[368669952,1751287846401,-151.0,0.00019311,2]
[368669953,1751287846410,-151.0,0.00019311,2]
[368669954,1751287846420,-264.53739657,0.00019311,2]
[368669955,1751287846429,-240.142468,0.00019311,2]
[368669956,1751287846438,-151.0,0.00019311,2]
[368669957,1751287846448,-460.0,0.00019311,2]
[368669958,1751287846457,-460.0,0.00019311,2]
[368669959,1751287846467,-460.0,0.00019311,2]
[368669960,1751287846476,-460.0,0.00019311,2]
[368669961,1751287846485,-460.0,0.00019311,2]
[368669962,1751287846495,-460.0,0.00019311,2]
[368669963,1751287846504,-460.0,0.00019311,2]
[368669964,1751287846513,-1850.88,0.00019311,2]
[368669965,1751287846523,-460.0,0.00019311,2]
[368669966,1751287846532,-460.0,0.00019311,2]
[368669967,1751287846541,-460.0,0.00019311,2]
[368669968,1751287846551,-460.0,0.00019311,2]
[368669969,1751287846560,-460.0,0.00019311,2]
[368669970,1751287846569,-460.0,0.00019311,2]
[368669971,1751287846579,-490.16,0.00019311,2]
[368669972,1751287846588,-6930.14887826,0.00019312,2]
[368669973,1751287846831,-450.0,0.00018487,2]
[368669974,1751287846842,-3049.89328286,0.00019312,2]
[368669976,1751287846852,-460.0,0.00019312,2]
[368669978,1751287846861,-460.0,0.00019312,2]
[368669979,1751287846870,-411.05638163,0.00019312,2]
[368669980,1751287846880,-460.0,0.00019312,2]
[368669981,1751287846889,-460.0,0.00019312,2]
[368669982,1751287846898,-460.0,0.00019312,2]
[368669983,1751287846907,-460.0,0.00019312,2]
[368669984,1751287846917,-460.0,0.00019312,2]
[368669985,1751287846926,-460.0,0.00019312,2]
[368669986,1751287846935,-460.0,0.00019312,2]
[368669987,1751287846945,-460.0,0.00019312,2]
[368669988,1751287846954,-460.0,0.00019312,2]
[368669989,1751287846963,-460.0,0.00019312,2]
[368669990,1751287846973,-151.0,0.00019312,2]
[368669991,1751287846982,-460.0,0.00019312,2]
[368669992,1751287846991,-460.0,0.00019312,2]
[368669993,1751287847000,-460.0,0.00019312,2]
[368669994,1751287847009,-460.0,0.00019312,2]
[368669995,1751287847019,-310.0,0.00019312,2]
[368669996,1751287847029,-460.0,0.00019312,2]
[368669997,1751287847039,-460.0,0.00019312,2]
[368669998,1751287847049,-460.0,0.00019312,2]
[368669999,1751287847058,-460.0,0.00019312,2]
[368670000,1751287847068,-460.0,0.00019312,2]
[368670001,1751287847077,-460.0,0.00019312,2]
[368670003,1751287847086,-500.0,0.00019312,2]
[368670005,1751287847096,-151.0,0.00019312,2]
[368670006,1751287847105,-460.0,0.00019312,2]
[368670007,1751287847115,-151.0,0.00019312,2]
[368670008,1751287847124,-151.0,0.00019312,2]
[368670009,1751287847134,-460.0,0.00019312,2]
[368670010,1751287847143,-460.0,0.00019312,2]
[368670011,1751287847153,-460.0,0.00019312,2]
[368670012,1751287847162,-151.0,0.00019312,2]
[368670013,1751287847171,-460.0,0.00019312,2]
[368670014,1751287847180,-460.0,0.00019312,2]
[368670015,1751287847190,-460.0,0.00019312,2]
[368670016,1751287847199,-460.0,0.00019312,2]
[368670017,1751287847207,-460.0,0.00019312,2]
[368670018,1751287847217,-460.0,0.00019312,2]
[368670019,1751287847227,-460.0,0.00019312,2]
[368670020,1751287847236,-2405.96,0.00019312,2]
[368670021,1751287847245,-23797.18622877,0.00019313,2]
[368670022,1751287847254,-1009.07,0.00019313,2]
[368670023,1751287847264,-2552.59,0.00019313,2]
[368670024,1751287847273,-929.52,0.00019313,2]
[368670025,1751287847282,-460.0,0.0001933,2]
[368670026,1751287847291,-460.0,0.0001933,2]
[368670027,1751287847301,-460.0,0.0001933,2]
[368670028,1751287847311,-500.0,0.00019332,2]
[368670029,1751287847320,-460.0,0.00019332,2]
[368670030,1751287847329,-460.0,0.00019332,2]
[368670031,1751287847338,-460.0,0.00019332,2]
[368670032,1751287847347,-460.0,0.00019332,2]
[368670033,1751287847357,-92.97278007,0.00019332,2]
[368670034,1751287847795,-460.0,0.00018488,2]
[368670035,1751287847804,-367.51,0.00018762,2]
[368670036,1751287847813,-367.02721993,0.00019332,2]
[368670037,1751287847823,-365.90736828,0.00019332,2]
[368670038,1751287847835,-94.09263172,0.00019332,2]
[368670039,1751287847844,-228.94736828,0.00019332,2]
[368670040,1751287855908,-1277.61,0.00018488,2]
[368670041,1751287855929,-460.0,0.00018488,2]
[368670042,1751287855952,-460.0,0.00018488,2]
[368670043,1751287855975,-481.17,0.0001849,2]
[368670044,1751287855997,-460.0,0.0001849,2]
[368670045,1751287856018,-1277.61,0.00018762,2]
[368670046,1751287856040,-460.0,0.00018762,2]
[368670047,1751287856062,-460.0,0.00018762,2]
[368670048,1751287856083,-481.17,0.00018764,2]
[368670049,1751287856105,-460.0,0.00018764,2]
[368670050,1751287856126,-460.0,0.00018797,2]
[368670051,1751287856155,500.0,0.00018488,2]
[368670052,1751287856186,250.0,0.00018488,2]
[368670053,1751287856220,460.0,0.00018487,2]
[368670054,1751287856281,282.21520358,0.00018488,2]
[368670055,1751287857027,460.0,0.00018489,2]
[368670056,1751287857635,460.0,0.00018763,2]
[368670057,1751287857745,500.0,0.00018488,2]
[368670058,1751287857800,500.0,0.00018488,2]
[368670059,1751287857854,500.0,0.00018488,2]
[368670060,1751287857910,463.57078269,0.00018488,2]
[368670061,1751287858213,460.0,0.00018489,2]
[368670062,1751287858467,426.65401373,0.00018763,2]
[368670118,1751288336970,387.830781,0.00017932,2]
[368670119,1751288337343,189.303452,0.00017933,2]
[368670120,1751288337701,157.83242906,0.00017934,2]
[368670132,1751288378572,235.75035,0.00013699,2]
[368670138,1751288425134,1481.94546848,0.00017503,2]
[368670139,1751288425158,7624.85447832,0.00017503,2]
[368670140,1751288425181,10000.0,0.00017503,2]
[368670141,1751288425203,5793.2000532,0.00017503,2]
[368670185,1751288638965,152.41288074,0.00017932,2]
[368670211,1751288803604,165.0,0.000181,2]
[368670213,1751288804839,165.0,0.000181,2]
[368670214,1751288805536,165.0,0.000181,2]
[368670215,1751288811648,165.0,0.000181,3]
[368670217,1751288823183,165.0,0.000181,3]
[368670234,1751288899843,1301.4313349,0.00018082,2]
[368670258,1751289031898,-247.35596518,0.00018383,2]
[368670259,1751289031907,-1200.0,0.00018482,2]
[368670260,1751289031916,-313.34111349,0.00018483,2]
[368670287,1751289037937,-886.65888651,0.00018483,2]
[368670289,1751289037946,-300.0,0.00018483,2]
[368670291,1751289037956,-300.0,0.00018483,2]
[368670293,1751289037966,-300.0,0.00018483,2]
[368670295,1751289037975,-256.0,0.00018483,2]
[368670296,1751289037984,-285.47012378,0.00018485,2]
[368670297,1751289037994,-460.0,0.00018485,2]
[368670298,1751289038003,-505.03537856,0.00018485,2]
[368670299,1751289038013,-460.0,0.00018485,2]
[368670300,1751289038022,-460.0,0.00018485,2]
[368670301,1751289038031,-460.0,0.00018485,2]
[368670302,1751289038040,-460.0,0.00018485,2]
[368670303,1751289038050,-460.0,0.00018485,2]
[368670304,1751289038060,-460.0,0.00018485,2]
[368670305,1751289038069,-808.53260332,0.00018485,2]
[368670306,1751289038079,-466.06703478,0.00018485,2]
[368670307,1751289038088,-466.76927227,0.00018485,2]
[368670308,1751289038098,-460.0,0.00018485,2]
[368670309,1751289038107,-460.0,0.00018485,2]
[368670310,1751289038116,-918.71,0.00018485,2]
[368670311,1751289038126,-460.0,0.00018485,2]
[368670312,1751289038135,-460.0,0.00018485,2]
[368670313,1751289038145,-460.0,0.00018486,2]
[368670314,1751289038157,-366.61941739,0.00018486,2]
[368670315,1751289038167,-460.0,0.00018486,2]
[368670316,1751289038177,-460.0,0.00018486,2]
[368670317,1751289038186,-460.0,0.00018486,2]
[368670318,1751289038197,-460.0,0.00018486,2]
[368670319,1751289038207,-461.3191053,0.00018486,2]
[368670320,1751289038216,-460.0,0.00018486,2]
[368670321,1751289038227,-460.0,0.00018486,2]
[368670322,1751289038243,-460.0,0.00018486,2]
[368670323,1751289038252,-460.0,0.00018486,2]
[368670324,1751289038260,-460.0,0.00018486,2]
[368670325,1751289038270,-877.44,0.00018486,2]
[368670326,1751289038279,-421.57183673,0.00018486,2]
[368670327,1751289038288,-460.0,0.00018486,2]
[368670328,1751289038297,-460.0,0.00018486,2]
[368670329,1751289038306,-460.0,0.00018486,2]
[368670330,1751289038315,-460.0,0.00018486,2]
[368670331,1751289038326,-460.0,0.00018486,2]
[368670332,1751289038335,-460.0,0.00018486,2]
[368670333,1751289038344,-460.0,0.00018486,2]
[368670334,1751289038354,-550.0,0.00018486,2]
[368670335,1751289038364,-525.42,0.00018486,2]
[368670336,1751289038373,-1350.45,0.00018486,2]
[368670337,1751289038383,-460.0,0.00018486,2]
[368670338,1751289038392,-460.0,0.00018486,2]
[368670339,1751289038401,-460.0,0.00018486,2]
[368670340,1751289038412,-1325.04,0.00018486,2]
[368670341,1751289038421,-460.0,0.00018486,2]
[368670342,1751289038431,-460.0,0.00018486,2]
[368670343,1751289038442,-460.0,0.00018486,2]
[368670344,1751289038452,-460.0,0.00018486,2]
[368670345,1751289038462,-460.0,0.00018486,2]
[368670346,1751289038471,-460.0,0.00018486,2]
[368670347,1751289038481,-548.55,0.00018486,2]
[368670348,1751289038490,-1353.21,0.00018486,2]
[368670349,1751289038501,-460.0,0.00018486,2]
[368670350,1751289038514,-460.0,0.00018486,2]
[368670351,1751289038523,-1904.62,0.00018486,2]
[368670352,1751289038533,-460.0,0.00018486,2]
[368670353,1751289038542,-540.0,0.00018486,2]
[368670354,1751289038552,-460.0,0.00018486,2]
[368670355,1751289038562,-460.0,0.00018486,2]
[368670356,1751289038572,-1940.45,0.00018486,2]
[368670357,1751289038581,-460.0,0.00018486,2]
[368670358,1751289038591,-500.0,0.00018486,2]
[368670359,1751289038600,-1573.38,0.00018486,2]
[368670360,1751289038610,-460.0,0.00018486,2]
[368670361,1751289038620,-851.94,0.00018486,2]
[368670362,1751289038629,-460.0,0.00018486,2]
[368670363,1751289038638,-460.0,0.00018486,2]
[368670364,1751289038647,-460.0,0.00018486,2]
[368670365,1751289038656,-460.0,0.00018486,2]
[368670366,1751289038666,-460.0,0.00018486,2]
[368670367,1751289038675,-460.0,0.00018486,2]
[368670368,1751289038684,-395.17628783,0.00018486,2]
[368670369,1751289038693,-460.0,0.00018486,2]
[368670370,1751289038703,-460.0,0.00018486,2]
[368670371,1751289038712,-460.0,0.00018486,2]
[368670372,1751289038722,-339.99423201,0.00018486,2]
[368670373,1751289038730,-460.0,0.00018486,2]
[368670374,1751289038740,-460.98578924,0.00018486,2]
[368670375,1751289038749,-460.0,0.00018486,2]
[368670376,1751289038760,-316.06441967,0.00018486,2]
[368670377,1751289038769,-460.0,0.00018486,2]
[368670378,1751289038779,-460.0,0.00018486,2]
[368670379,1751289038789,-460.0,0.00018486,2]
[368670380,1751289038798,-460.0,0.00018486,2]
[368670381,1751289038808,-460.0,0.00018486,2]
[368670382,1751289038817,-460.0,0.00018486,2]
[368670383,1751289038828,-460.0,0.00018486,2]
[368670384,1751289038838,-460.0,0.00018486,2]
[368670385,1751289038848,-460.0,0.00018486,2]
[368670386,1751289038858,-497.4,0.00018486,2]
[368670387,1751289038868,-501.84986204,0.00018486,2]
[368670388,1751289038877,-460.0,0.00018486,2]
[368670389,1751289038887,-460.0,0.00018486,2]
[368670390,1751289038896,-461.56366774,0.00018486,2]
[368670391,1751289038905,-500.0,0.00018486,2]
[368670392,1751289038916,-500.0,0.00018486,2]
[368670393,1751289038925,-500.0,0.00018486,2]
[368670394,1751289038933,-500.0,0.00018486,2]
[368670395,1751289038942,-500.0,0.00018486,2]
[368670396,1751289038951,-500.0,0.00018486,2]
[368670397,1751289038960,-371.84014245,0.00018486,2]
[368670398,1751289038970,-454.06157187,0.00018486,2]
[368670399,1751289038979,-500.0,0.00018486,2]
[368670400,1751289038989,-401.87696957,0.00018486,2]
[368670401,1751289038999,-460.0,0.00018487,2]
[368670402,1751289039009,-461.88178036,0.00018487,2]
[368670403,1751289039018,-460.0,0.00018487,2]
[368670404,1751289039027,-460.0,0.00018487,2]
[368670405,1751289039037,-460.0,0.00018487,2]
[368670406,1751289039189,-460.0,0.00018487,2]
[368670407,1751289039200,-460.0,0.00018487,2]
[368670408,1751289039210,-460.0,0.00018487,2]
[368670409,1751289039220,-433.56277256,0.00018487,2]
[368670410,1751289039231,-544.06228736,0.00018487,2]
[368670411,1751289039242,-463.6476598,0.00018487,2]
[368670412,1751289039252,-460.0,0.00018487,2]
[368670413,1751289039263,-460.0,0.00018487,2]
[368670414,1751289039273,-460.0,0.00018487,2]
[368670415,1751289039282,-460.0,0.00018487,2]
[368670416,1751289039292,-460.0,0.00018487,2]
[368670417,1751289039301,-460.0,0.00018487,2]
[368670418,1751289039310,-460.0,0.00018487,2]
[368670419,1751289039320,-460.0,0.00018487,2]
[368670420,1751289039331,-460.0,0.00018487,2]
[368670421,1751289039340,-460.0,0.00018487,2]
[368670422,1751289039350,-460.0,0.00018487,2]
[368670423,1751289039359,-460.0,0.00018487,2]
[368670424,1751289039369,-460.0,0.00018487,2]
[368670425,1751289039378,-460.0,0.00018487,2]
[368670426,1751289039389,-460.0,0.00018487,2]
[368670427,1751289039399,-460.0,0.00018487,2]
[368670428,1751289039409,-460.0,0.00018487,2]
[368670429,1751289039418,-460.0,0.00018487,2]
[368670430,1751289039429,-460.0,0.00018487,2]
[368670431,1751289039438,-460.0,0.00018487,2]
[368670432,1751289039448,-460.0,0.00018487,2]
[368670433,1751289039458,-430.0,0.00018487,2]
[368670434,1751289039467,-460.0,0.00018487,2]
[368670435,1751289039477,-460.0,0.00018487,2]
[368670436,1751289039487,-460.0,0.00018487,2]
[368670437,1751289039497,-460.0,0.00018487,2]
[368670438,1751289039509,-460.0,0.00018487,2]
[368670439,1751289039519,-460.0,0.00018487,2]
[368670440,1751289039530,-460.0,0.00018487,2]
[368670441,1751289039539,-460.0,0.00018487,2]
[368670442,1751289039549,-460.0,0.00018487,2]
[368670443,1751289039559,-460.0,0.00018487,2]
[368670444,1751289039569,-460.0,0.00018487,2]
[368670445,1751289039578,-460.0,0.00018487,2]
[368670446,1751289039588,-460.0,0.00018487,2]
[368670447,1751289039598,-16.62195078,0.00018487,2]
[368670448,1751289039612,-484.64804922,0.00018487,2]
[368670449,1751289039622,-460.0,0.00018487,2]
[368670450,1751289039633,-460.0,0.00018487,2]
[368670451,1751289039643,-460.0,0.00018487,2]
[368670452,1751289039653,-460.0,0.00018487,2]
[368670453,1751289039663,-460.0,0.00018487,2]
[368670454,1751289039673,-460.0,0.00018487,2]
[368670455,1751289039684,-863.08,0.00018487,2]
[368670456,1751289039693,-460.0,0.00018487,2]
[368670457,1751289039703,-460.0,0.00018487,2]
[368670458,1751289039713,-460.0,0.00018487,2]
[368670459,1751289039723,-460.0,0.00018487,2]
[368670460,1751289039732,-596.43,0.00018487,2]
[368670461,1751289039742,-460.0,0.00018487,2]
[368670462,1751289039751,-460.0,0.00018487,2]
[368670463,1751289039761,-460.0,0.00018487,2]
[368670464,1751289039770,-460.0,0.00018487,2]
[368670465,1751289039780,-500.0,0.00018487,2]
[368670466,1751289039789,-460.0,0.00018487,2]
[368670467,1751289039798,-460.0,0.00018487,2]
[368670468,1751289039808,-500.0,0.00018487,2]
[368670469,1751289039817,-500.0,0.00018487,2]
[368670470,1751289039827,-460.0,0.00018487,2]
[368670471,1751289039836,-389.37076012,0.00018487,2]
[368670472,1751289039849,-70.62923988,0.00018487,2]
[368670473,1751289039858,-1440.92,0.00018487,2]
[368670474,1751289039868,-460.0,0.00018487,2]
[368670475,1751289039878,-460.0,0.00018487,2]
[368670476,1751289039887,-460.0,0.00018487,2]
[368670477,1751289039896,-460.0,0.00018487,2]
[368670478,1751289039906,-460.0,0.00018487,2]
[368670479,1751289039915,-503.1,0.00018487,2]
[368670480,1751289039924,-929.77,0.00018487,2]
[368670481,1751289039935,-460.0,0.00018487,2]
[368670482,1751289039946,-2572.33,0.00018487,2]
[368670483,1751289039955,-460.0,0.00018487,2]
[368670484,1751289039965,-460.0,0.00018487,2]
[368670485,1751289039974,-460.66272649,0.00018488,2]
[368670486,1751289039983,-460.0,0.00018488,2]
[368670487,1751289039993,-462.52718163,0.00018488,2]
[368670488,1751289040004,-460.0,0.00018488,2]
[368670489,1751289040014,-460.0,0.00018488,2]
[368670491,1751289040024,-460.0,0.00018488,2]
[368670493,1751289040033,-460.0,0.00018488,2]
[368670495,1751289040043,-460.0,0.00018488,2]
[368670497,1751289040051,-2480.35,0.00018488,2]
[368670498,1751289040060,-460.0,0.00018488,2]
[368670499,1751289040070,-460.0,0.00018488,2]
[368670500,1751289040079,-910.79,0.00018488,2]
[368670501,1751289040089,-460.0,0.00018488,2]
[368670502,1751289040098,-558.0,0.00018488,2]
[368670503,1751289040107,-264.53369959,0.00018488,2]
[368670504,1751289040120,-235.46630041,0.00018488,2]
[368670505,1751289040130,-461.75969543,0.00018488,2]
[368670506,1751289040139,-500.0,0.00018488,2]
[368670507,1751289040151,-460.0,0.00018488,2]
[368670508,1751289040162,-460.0,0.00018488,2]
[368670509,1751289040171,-429.93813131,0.00018489,2]
[368670510,1751289040180,-460.0,0.00018489,2]
[368670511,1751289040190,-284.31746798,0.00018489,2]
[368670512,1751289040202,-185.3024153,0.00018489,2]
[368670513,1751289040211,-460.0,0.00018489,2]
[368670514,1751289040220,-460.0,0.00018489,2]
[368670515,1751289040230,-460.0,0.00018489,2]
[368670516,1751289040240,-460.0,0.00018489,2]
[368670517,1751289040249,-460.0,0.00018489,2]
[368670518,1751289040258,-555.32,0.00018489,2]
[368670519,1751289040267,-1000.0,0.00018489,2]
[368670520,1751289040277,-1000.0,0.00018489,2]
[368670521,1751289040287,-1013.29780014,0.00018489,2]
[368670522,1751289040296,-500.0,0.00018489,2]
[368670523,1751289040310,-210.66622379,0.00018489,2]
[368670524,1751289040319,-460.0,0.00018489,2]
[368670525,1751289040327,-460.0,0.00018489,2]
[368670526,1751289040334,-460.0,0.00018489,2]
[368670527,1751289040343,-567.18,0.00018489,2]
[368670528,1751289040352,-460.0,0.0001849,2]
[368670529,1751289040361,-208.76,0.0001849,2]
[368670530,1751289040370,-460.0,0.0001849,2]
[368670531,1751289040379,-460.0,0.0001849,2]
[368670532,1751289040388,-605.18924806,0.0001849,2]
[368670533,1751289040398,-460.0,0.0001849,2]
[368670534,1751289040407,-460.0,0.0001849,2]
[368670535,1751289040417,-460.0,0.0001849,2]
[368670536,1751289040429,-460.0,0.0001849,2]
[368670537,1751289040438,-460.0,0.0001849,2]
[368670538,1751289040448,-460.05998087,0.0001849,2]
[368670539,1751289040457,-349.83265997,0.0001849,2]
[368670540,1751289040467,-500.0,0.0001849,2]
[368670541,1751289040477,-460.0,0.0001849,2]
[368670542,1751289040486,-460.0,0.0001849,2]
[368670543,1751289040495,-151.0,0.00018544,2]
[368670544,1751289040505,-500.0,0.00018544,2]
[368670545,1751289040516,-247.77915422,0.00018544,2]
[368670546,1751289040525,-151.0,0.00018544,2]
[368670547,1751289040534,-151.0,0.00018544,2]
[368670548,1751289040544,-500.0,0.00018544,2]
[368670549,1751289040554,-201.76868362,0.00018544,2]
[368670550,1751289040562,-151.0,0.00018544,2]
[368670551,1751289040572,-500.0,0.00018544,2]
[368670552,1751289040582,-151.0,0.00018544,2]
[368670553,1751289040592,-151.0,0.00018544,2]
[368670554,1751289040602,-268.67247821,0.00018544,2]
[368670555,1751289040611,-151.0,0.00018544,2]
[368670556,1751289040622,-151.0,0.00018544,2]
[368670557,1751289040632,-151.0,0.00018544,2]
[368670558,1751289040641,-833.0,0.00018544,2]
[368670559,1751289040651,-1621.0,0.00018544,2]